Cogmind - Beta 15 --- EXPLORER MODE // 2025.06.28 @ 10:35:15 Player: Reallybaked Result: Destroyed by P-70 Sage with Tesla Rifle Performance ------------- Evolutions (3) 1500 Regions Visited (4) 800 Robots Destroyed (55) 275 Value Destroyed (1463) 1463 Prototype IDs (1) 20 Alien Tech Used (0) 0 Bonus (0) 0 TOTAL SCORE: 4058 Bonus ------- None Cogmind --------- Core Integrity 0/700 Matter 283/300 Energy 99/100 System Corruption 4% Temperature Cool (0) Movement Core (50) Location -7/Factory Parts ------- > --- POWER (4) -------- (None) > --- PROPULSION (3) --- (None) > --- UTILITY (3) ------ Improved Utility Shielding (fused) > --- WEAPON (4) ------- (None) > --- INVENTORY (5) ---- (None) Peak State ------------ > --- POWER ------------ Ion Engine Ion Engine > --- PROPULSION ------- Light Treads Light Treads > --- UTILITY ---------- Sensor Array Power Shielding Improved Utility Shielding > --- WEAPON ----------- Field Laser Field Laser Field Laser > --- INVENTORY -------- Light Ion Engine Improved Ion Engine Plasma Cutter [Rating: 18] Favorites ----------- Power Ion Engine Engine Ion Engine Propulsion Light Treads Treads Light Treads Leg Aluminum Leg Wheel Compact Wheel Flight Unit Flight Unit Utility Improved Utility Shielding Device Sensor Array Protection Improved Utility Shielding Weapon Field Laser Energy Gun Field Laser Ballistic Gun Heavy Assault Rifle Launcher Mini Grenade Launcher Impact Weapon Maul Build | -11 -10 -9 -8 -7 ------- Run | Yrd Mat Mat Mat Fac Slots Evolved 7 | . 1 2 2 2 Power 3 | . 1 . 1 1 Propulsion 1 | . . . 1 . Utility 1 | . . 1 . . Weapon 2 | . . 1 . 1 Parts Attached 33 | 8 2 9 8 6 Power 6 | 1 . 2 1 2 Engine 6 | 1 . 2 1 2 Core . | . . . . . Reactor . | . . . . . Propulsion 10 | 2 2 2 4 . Treads 2 | . . 2 . . Leg 3 | 2 . . 1 . Wheel 3 | . . . 3 . Hover . | . . . . . Flight 2 | . 2 . . . Utility 5 | 3 . 1 . 1 Device 3 | 2 . . . 1 Storage . | . . . . . Processor . | . . . . . Hackware . | . . . . . Protection 2 | 1 . 1 . . Artifact . | . . . . . Weapon 12 | 2 . 4 3 3 Energy Gun 9 | 2 . 3 3 1 Energy Cannon . | . . . . . Ballistic Gun 1 | . . . . 1 Ballistic Cannon . | . . . . . Launcher 1 | . . 1 . . Special Weapon . | . . . . . Impact Weapon 1 | . . . . 1 Slashing Weapon . | . . . . . Piercing Weapon . | . . . . . Special Melee Weapon . | . . . . . Unidentified Prototypes 1 | . . . . 1 Parts Lost 9 | . . . 1 8 Power 3 | . . . 1 2 Propulsion . | . . . . . Utility 2 | . . . . 2 Weapon 4 | . . . . 4 Highest Loss Streak 4 | . . . 1 4 To Critical Strikes . | . . . . . Average Backups 1 | 1 4 2 2 . Power . | . . 1 1 . Propulsion . | . . . . . Utility . | . 2 . . . Weapon . | . 2 . . . Tool/Special . | . . . . . Unused Backups 6 | . 1 4 1 . Power . | . . . . . Propulsion . | . . . . . Utility 2 | . . 2 . . Weapon 3 | . 1 2 . . Tool/Special 1 | . . . 1 . Average Slot Usage (%) 66 | . 87 94 84 26 Engine 11 | . 12 16 14 5 Treads 6 | . . 15 5 . Leg 1 | . 15 . . . Wheel 2 | . . . 14 . Flight 1 | . 9 3 . . Device 7 | . 12 13 8 1 Protection 13 | . 12 16 16 9 Energy Gun 18 | . 25 28 23 4 Impact Weapon 1 | . . . . 2 Peak Build Rating 18 | 7 7 18 18 17 Average Rating 13 | 3 7 16 16 11 On Entrance 9 | . 7 7 18 16 Naked Turns . | . . . . . Heaviest Build 29 | 8 8 23 23 29 Greatest Support 48 | 20 20 40 48 48 Greatest Overweight (x) 9 | . 1 1 5 9 Average Overweight (x) . | . . . . 1 Largest Inventory Capacity 5 | 5 5 5 5 5 Average Capacity 5 | 5 5 5 5 5 Most Carried 5 | 5 5 5 5 4 Average Carried 1 | 1 4 2 2 . Final Capacity 5 | 5 5 5 5 5 Final Carried 5 | 4 5 3 2 . Class Distribution -------------------- 50% | Hacker-Mutant 37% | Hacker-Tank 11% | Hacker-Skirmisher Dominant Class ---------------- Hacker-Mutant | -10/Materials Hacker-Tank | -9/Materials Hacker-Tank | -8/Materials Hacker-Mutant | -7/Factory Resources | -11 -10 -9 -8 -7 ----------- Run | Yrd Mat Mat Mat Fac Matter Collected 702 | 99 112 194 222 75 Remotely . | . . . . . Salvage Created 1738 | 50 168 547 478 495 Parts 104 | 5 14 40 23 22 Haulers Intercepted 1 | . . . . 1 Recyclers Shooed 1 | . . . . 1 Parts Field Recycled . | . . . . . Retrieved Matter . | . . . . . Parts Self-Destructed . | . . . . . Prevented . | . . . . . Kills | -11 -10 -9 -8 -7 ------- Run | Yrd Mat Mat Mat Fac Combat Hostiles Destroyed 42 | 1 5 12 13 11 Melee 6 | . . . . 6 Guns 34 | 1 5 11 13 4 Classes Destroyed 11 | 1 1 3 2 4 Worker 3 | . . 1 1 1 Builder 1 | . . . 1 . Tunneler 1 | . . . 1 . Hauler 1 | . . . . 1 Recycler 1 | . . . . 1 Watcher 6 | . . 4 1 1 Swarmer 18 | . 2 3 8 5 Grunt 17 | 1 3 5 4 4 Sentry 5 | . . 4 1 . Hunter 1 | . . . . 1 Programmer 1 | . . . . 1 Best Kill Streak 4 | 1 2 3 4 3 Combat Bots Only 3 | 1 2 3 3 3 Max Kills in Single Turn 2 | 1 1 2 2 1 Gunslinging 1 | . . 1 1 . Exploded . | . . . . . Melee 1 | . . . . 1 Uniques/NPCs Destroyed . | . . . . . Combat | -11 -10 -9 -8 -7 -------- Run | Yrd Mat Mat Mat Fac Hostile Shots Fired 294 | 7 11 35 59 182 Missed 82 | 1 4 15 12 50 Hits 212 | 6 7 20 47 132 Projectile 212 | 6 7 20 47 132 Critical Strikes 7 | . . 1 2 4 Actively Blocked 1 | . . . 1 . Damage Taken 2184 | 40 40 183 579 1342 Core 1033 | . 15 40 277 701 Absorbed by Shields . | . . . . . Redirected to Shielding 96 | . 4 4 41 47 Ignored by Resistances 1161 | 26 26 116 229 764 Regen/Repaired (Parts) 65 | . . . 65 . Core Remaining (%) 83 | 100 94 90 49 . Volleys Fired 104 | 2 11 21 32 38 Largest 3 | 2 2 3 3 2 Hottest 195 | 80 80 189 195 86 Shots Fired 207 | 4 22 63 77 41 Gun 206 | 4 22 62 77 41 Cannon . | . . . . . Launcher 1 | . . 1 . . Special . | . . . . . Kinetic 11 | . . . . 11 Thermal 181 | 2 11 61 77 30 Explosive 1 | . . 1 . . Electromagnetic 14 | 2 11 1 . . Robot Hit Streak 22 | 4 9 20 22 19 Robot Miss Streak 3 | . 2 1 1 3 Penetration Max . | . . . . . Secondary Targets 6 | . . 2 4 . Max Gunslinging Chain 1 | . . 1 1 . Shots Hit Robots 143 | 4 14 43 49 33 Core Hits 109 | 2 9 21 24 53 Critical Kills 2 | . . . . 2 Critical Parts Destroyed 1 | . . . . 1 Critical Strikes 13 | . . 5 5 3 Burn 10 | . . 5 5 . Smash 3 | . . . . 3 Melee Attacks 12 | . . . . 12 Impact 12 | . . . . 12 Slashing . | . . . . . Piercing . | . . . . . Sneak Attacks . | . . . . . Combat Hostiles . | . . . . . Follow-up Attacks . | . . . . . Damage Inflicted 2819 | 49 171 760 754 1085 Guns 2291 | 49 171 760 754 557 Cannons . | . . . . . Explosions . | . . . . . Melee 441 | . . . . 441 Ramming 87 | . . . . 87 Kinetic . | . . . . . Thermal 2135 | 22 66 736 754 557 Explosive . | . . . . . Electromagnetic 156 | 27 105 24 . . Impact 441 | . . . . 441 Slashing . | . . . . . Piercing . | . . . . . Highest Corruption 4 | . . . 1 4 Average Corruption 1 | . . . 1 2 Corruption Purged . | . . . . . Corruption Blocked . | . . . . . Effects 11 | . . . 2 9 Message Errors 3 | . . . 1 2 Matter Fused 4 | . . . 1 3 Parts Fused 1 | . . . . 1 Data Loss (minor) 2 | . . . . 2 Alerts 1 | . . . . 1 Overload Shots . | . . . . . Overflow Damage 63 | . . . . 63 Projectiles . | . . . . . Explosions . | . . . . . Melee 63 | . . . . 63 Knockbacks 2 | . . . . 2 Impact 2 | . . . . 2 Kinetic . | . . . . . Secondary . | . . . . . Self-Inflicted Damage 67 | . . 30 . 37 Shots 1 | . . 1 . . Rammed 29 | . . 1 . 28 Targets Rammed 29 | . . 1 . 28 Kicked . | . . . . . Crushed . | . . . . . Highest Temperature 799 | 24 191 420 799 74 Average Temperature 167 | 14 75 146 269 21 Received Heat Transfer 501 | 36 27 105 198 135 Effects 37 | . . 2 35 . Shutdowns 13 | . . 2 11 . Energy Bleed 5 | . . . 5 . Interference 4 | . . . 4 . Matter Decay 2 | . . . 2 . Short Circuit 3 | . . . 3 . Damage (minor) 3 | . . . 3 . Damage (major) 4 | . . . 4 . Damage (core) 3 | . . . 3 . Siege Activations . | . . . . . Martial Activations . | . . . . . Shielding Activations . | . . . . . Robots Disrupted . | . . . . . Combat Hostiles . | . . . . . Robots Corrupted 1 | . . . . 1 Combat Hostiles 1 | . . . . 1 Parts Fried 1 | . . . . 1 Impact Corruptions 3 | . . . . 3 Robots Melted 1 | . . 1 . . Combat Hostiles 1 | . . 1 . . Parts Melted 21 | . . 13 7 1 Heat Transferred 4725 | 50 150 1961 2109 455 Parts Sabotaged . | . . . . . Parts Stolen . | . . . . . Parts Stripped . | . . . . . Power Chain Reactions . | . . . . . Alert | -11 -10 -9 -8 -7 ------- Run | Yrd Mat Mat Mat Fac Maximum Alert Level . | . . . . . Low Security (%) 100 | 100 100 100 100 100 Level 1 . | . . . . . Level 2 . | . . . . . Level 3 . | . . . . . Level 4 . | . . . . . Level 5 . | . . . . . High Security . | . . . . . Max Security . | . . . . . Peak Influence 81 | 20 35 70 81 50 Initial 21 | . 2 1 6 21 Average 10 | 1 15 7 27 6 Influence Increases 1167 | 20 130 358 362 297 Destroy 0b10 Robot/C 840 | 20 100 240 260 220 Destroy 0b10 Robot/NC 65 | . . 25 20 20 Destroy Leader 224 | . 30 78 62 54 Successful Hack 7 | . . . 4 3 Disable Machine 4 | . . 4 . . Destroy Structure 12 | . . 11 1 . Lose Combat Pursuer 15 | . . . 15 . Influence Decreases 1167 | 15 130 343 316 363 Entered New Map 66 | . 3 4 14 45 Time Decay 1081 | 15 127 339 292 308 Lost Part 20 | . . . 10 10 Squads Dispatched 10 | . 1 3 1 5 Investigation 2 | . 1 . . 1 Extermination 2 | . . . . 2 Reinforcement 6 | . . 3 1 2 Assault . | . . . . . Garrison . | . . . . . Intercept . | . . . . . Searches Triggered . | . . . . . Construction Impeded 1 | . . 1 . . Haulers Reinforced 1 | . . . . 1 Active Scanning Responses . | . . . . . Cargo Convoy Interrupts . | . . . . . Stealth | -11 -10 -9 -8 -7 --------- Run | Yrd Mat Mat Mat Fac Distress Signals 5 | . . 1 3 1 Communications Jammed . | . . . . . Distress Signals . | . . . . . Times Spotted 58 | 1 5 17 16 19 Peak Tracking Total 4 | 1 2 3 4 4 Tactical Retreats 1 | . . . 1 . Traps | -11 -10 -9 -8 -7 ------- Run | Yrd Mat Mat Mat Fac Traps Triggered 4 | . . . . 4 Indirectly . | . . . . . Trap Hack Attempts . | . . . . . Triggered . | . . . . . Disarmed . | . . . . . Reprogrammed . | . . . . . Reused . | . . . . . Traps Extracted . | . . . . . Installed . | . . . . . Triggered . | . . . . . Machines | -11 -10 -9 -8 -7 ---------- Run | Yrd Mat Mat Mat Fac Machines Disabled 1 | . . 1 . . Max in Single Turn 1 | . . 1 . . Machines Repaired . | . . . . . Machines Dismantled . | . . . . . Machines Sabotaged . | . . . . . Overloaded Fab Kills . | . . . . . Hacking | -11 -10 -9 -8 -7 --------- Run | Yrd Mat Mat Mat Fac Machines Accessed 14 | . 4 5 2 3 Terminals 8 | . 4 2 . 2 Fabricators . | . . . . . Repair Stations 2 | . . 1 1 . Recycling Units 2 | . . 1 . 1 Scanalyzers 2 | . . 1 1 . Garrison Access . | . . . . . Total Hacks 48 | . 10 21 10 7 Successful 46 | . 10 20 10 6 Failed 2 | . . 1 . 1 Catastrophic . | . . . . . Database Lockouts . | . . . . . Manual . | . . . . . Terminals 18 | . 10 5 . 3 Fabricators . | . . . . . Repair Stations 9 | . . 4 5 . Recycling Units 9 | . . 5 . 4 Scanalyzers 12 | . . 7 5 . Garrison Access . | . . . . . Terminal Hacks 17 | . 10 4 . 3 Record 14 | . 10 2 . 2 Open DSF 1 | . . . . 1 Emergency Access Points 1 | . . 1 . . Locate Traps 1 | . . 1 . . Fabricator Hacks . | . . . . . Repair Station Hacks 9 | . . 4 5 . Scan Component 6 | . . 4 2 . Repair 2 | . . . 2 . Refit 1 | . . . 1 . Recycling Unit Hacks 8 | . . 5 . 3 Recycle Component 4 | . . 4 . . Process 2 | . . 1 . 1 Report Inventory 2 | . . . . 2 Scanalyzer 12 | . . 7 5 . Insert Component 8 | . . 4 4 . Analyze 4 | . . 3 1 . Garrison Access Hacks . | . . . . . Unauthorized Hacks . | . . . . . Terminals . | . . . . . Fabricators . | . . . . . Repair Stations . | . . . . . Recycling Units . | . . . . . Scanalyzers . | . . . . . Garrison Access . | . . . . . Data Cores Recovered . | . . . . . Used . | . . . . . Hacking Detections 12 | . 4 4 2 2 Full Trace Events 6 | . 2 1 2 1 Feedback Events 1 | . . . 1 . Corruption 1 | . . . 1 . Feedback Blocked . | . . . . . Robot Schematics Acquired . | . . . . . Robots Built . | . . . . . Authchips . | . . . . . Time . | . . . . . Total Robot Build Rating . | . . . . . Part Schematics Acquired 4 | . . 3 1 . Parts Built . | . . . . . Authchips . | . . . . . Time . | . . . . . Total Part Build Rating . | . . . . . Parts Repaired 2 | . . . 2 . Time 76 | . . . 76 . Parts Recycled 4 | . . 4 . . Recycled Matter 517 | . . 267 . 250 Retrieved Matter . | . . . . . Retrieved Components . | . . . . . Parts Scanalyzed 4 | . . 3 1 . Part Schematics Acquired 4 | . . 3 1 . Parts Damaged 1 | . . 1 . . Bothacking | -11 -10 -9 -8 -7 ------------ Run | Yrd Mat Mat Mat Fac Used RIF Installer . | . . . . . Robots Hacked . | . . . . . Non-combat . | . . . . . Combat . | . . . . . Robot Hacks Applied . | . . . . . Relay Couplers Released . | . . . . . Fabnet Peak Effective % . | . . . . . Robots Rewired . | . . . . . Allies Hacked . | . . . . . Hacks Repelled . | . . . . . Allies | -11 -10 -9 -8 -7 -------- Run | Yrd Mat Mat Mat Fac Total Allies . | . . . . . Largest Group . | . . . . . Highest-Rated Group . | . . . . . Highest-Rated Ally . | . . . . . Total Orders . | . . . . . Ally Attacks . | . . . . . Total Damage . | . . . . . Kills . | . . . . . Allies Corrupted . | . . . . . Allies Melted . | . . . . . Intel | -11 -10 -9 -8 -7 ------- Run | Yrd Mat Mat Mat Fac Active Infowar (turns) 1738 | 17 219 1236 225 41 Sensors 1738 | 17 219 1236 225 41 Robot Analysis Total . | . . . . . Derelict Logs Recovered . | . . . . . Drone Launches . | . . . . . Drone Recoveries . | . . . . . Exploration | -11 -10 -9 -8 -7 ------------- Run | Yrd Mat Mat Mat Fac Turns Passed 3270 | 117 219 1236 478 1220 Spaces Moved 2234 | 88 262 742 283 859 Core 846 | 21 . . 5 820 Treads 661 | . . 604 57 . Legs 182 | 67 98 . 17 . Wheels 243 | . . . 204 39 Hover . | . . . . . Flight 302 | . 164 138 . . Fastest Speed 37 | 50 37 117 100 50 Average Speed 125 | 103 68 152 126 122 Slowest Speed 500 | 120 130 160 300 500 Overloaded Moves . | . . . . . Propulsion Burnouts . | . . . . . Robots Hopped . | . . . . . Potential Cave-ins . | . . . . . Cave-ins Triggered . | . . . . . Exploration Rate (%) 22 | 8 22 46 20 17 Regions Visited 4 Branch Regions . Pre-discovered Areas . | . . . . . Known Exits Taken 4 | 1 1 1 1 . Unknown Exits Taken . | . . . . . Scrap Searched . | . . . . . Spaces Dug . | . . . . . Terrain Destroyed 8 | . . 8 . . Melee . | . . . . . Projectile . | . . . . . AOE 8 | . . 8 . . Terrain Rammed . | . . . . . Walls Destroyed . | . . . . . Machines Disabled . | . . . . . Actions | -11 -10 -9 -8 -7 --------- Run | Yrd Mat Mat Mat Fac Total 2489 | 110 277 802 341 959 Wait 23 | 1 . 12 . 10 Move 2230 | 87 261 741 282 859 Hop . | . . . . . Pick Up 37 | 11 2 11 8 5 Fast Attach 1 | . . . 1 . Attach 26 | 8 . 4 7 7 Detach 2 | 1 . . 1 . Swap 10 | . 2 6 2 . Drop 15 | . 1 6 8 . Fire 104 | 2 11 21 32 38 Melee 12 | . . . . 12 Ram 28 | . . . . 28 Kick . | . . . . . Crush 1 | . . 1 . . Escape Stasis . | . . . . . Rewire . | . . . . . Trap . | . . . . . Miscellaneous . | . . . . . Route ------- -11/Scrapyard -10/Materials -9/Materials -8/Materials -7/Factory History --------- Turn | Location | Event 2 | -11/Scrapyard | Met Revision 17 74 | -11/Scrapyard | Identified exit to Materials 74 | -11/Scrapyard | Discovered exit to Materials (range 8) 118 | -11/Scrapyard | Entered Materials 118 | -10/Materials | Evolved 1 slot: Power x1 302 | -10/Materials | Identified exit to Materials 302 | -10/Materials | Discovered exit to Materials (range 15) 312 | -10/Materials | Build established: Hacker-Mutant 337 | -10/Materials | Entered another Materials area 337 | -9/Materials | Evolved 2 slots: Utility x1, Weapon x1 644 | -9/Materials | Build established: Hacker-Skirmisher 1020 | -9/Materials | Build established: Hacker-Tank 1541 | -9/Materials | Identified exit to Materials 1541 | -9/Materials | Discovered exit to Materials (range 16) 1573 | -9/Materials | Entered another Materials area 1573 | -8/Materials | Evolved 2 slots: Power x1, Propulsion x1 1784 | -8/Materials | Repaired Field Laser 1822 | -8/Materials | Repaired Field Laser? 1894 | -8/Materials | Core integrity fell below 50% 2028 | -8/Materials | Identified exit to Factory 2028 | -8/Materials | Discovered exit to Factory (range 11) 2051 | -8/Materials | Entered Factory 2051 | -7/Factory | Evolved 2 slots: Power x1, Weapon x1 2392 | -7/Factory | Build established: Hacker-Mutant 2492 | -7/Factory | Lost 4 parts (1p1u2w) 2981 | -7/Factory | Core integrity fell below 50% 3005 | -7/Factory | Core integrity fell below 20% 3271 | -7/Factory | Destroyed by P-70 Sage with Tesla Rifle Last Messages --------------- System corrupted: Matter fused (-9). Connecting with Scanalyzer... ALERT: Potential suspicious activity detected, Programmers report to Factory Zone 8E. Connecting with DSF Access... System corrupted: Matter fused (-8). Connecting with Terminal... >>Query(Human) Homo sapiens, dominant species in the [Solar System] until civilization in that system was presumably wiped out during the [Solar War]. >>Query(Dirty Bomb Trap) Likely another product of [Derelict] [Tinkerers], when triggered this bomb generates an unusually high concentration of electromagnetic waves across its radius, capable of disabling an entire squad. An increasing number of patrols sent deep into the [Caves] have fallen to a combination of these traps and subsequent ambushes. Map ----- +----------------------------------------------------+ | ?????????????????????????????????????????????????? | | ?????????????????????????????????????????????????? | | ?????????????????????????????????????????????????? | | ?????????????????????????????????????????????????? | | ?????????????????????????????????????????????????? | | ?????????????????????????????????????????????????? | | ?????????????????????????????????????????????????? | | ?????????????????????????????????????????????????? | | ?????????????????????????????????????????????????? | | ?????????????????????????????????????????????????? | | ???????????????????????k ?????????????????????? | | ??????????????????????# ????????????????????? | | ??????????????????????#u ????????????????????? | | ??????????????????????# ????????????????????? | | ??????????????????????# #????????????????????? | | ??????????????????????# #????????????????????? | | ??????????????????????# #????????????????????? | | ??????????????????????# +????????????????????? | | ??????????????????????# #????????????????????? | | ??????????????????????# #????????????????????? | | ??????????????????????# #????????????????????? | | ??????????????????????# #????????????????????? | | ??????????????????????# #????????????????????? | | ??????????????????????#p #????????????????????? | | ??????????????????????+ #????????????????????? | | ??????????????????????# @ #????????????????????? | | ??????????????????????# #????????????????????? | | ??????????????????????#k #????????????????????? | | ??????????????????????# #????????????????????? | | ??????????????????????# #????????????????????? | | ????????############### #????????????????????? | | ????????# + r #????????????????????? | | ????????# """" """ # #????????????????????? | | ????????# """" ""T"" # #????????????????????? | | ????????# """" "" "" # #????????????????????? | | ????????# """" # #????????????????????? | | ????????# # #????????????????????? | | ????????# """" """" ! # #????????????????????? | | ????????# """" """" # #????????????????????? | | ????????# """" """" # #????????????????????? | | ????????# """" """" # #????????????????????? | | ????????# # #????????????????????? | | ?????################## #????????????????????? | | ######T ############### #######??????????????? | | ???????? | | ???????? | | ^" ???????? | | """ "G" ????????? | | """ " " ????????? | | ########### """ ######### ?????????? | +----------------------------------------------------+ Best States ------------- Heat Dissipation 34 Energy Generation 27 Energy Capacity 480 Matter Stores 300 Matter Capacity 300 Sight Range 16 Robot Scan Range 14 Terrain Scan Density 10 Resistance: KI 35 Resistance: TH 35 Resistance: EX 35 Resistance: EM 35 Resistance: I 35 Resistance: S 35 Resistance: P 35 Power Shielding 33 Utility Shielding 66 Evasion (%) 62 Recoil Reduction 2 Offensive Hacking 20 Item Schematics ----------------- Lgt. Ion Engine | -9/Materials | Scanalyzed Plasma Cutter | -9/Materials | Scanalyzed Imp. Ion Engine | -9/Materials | Scanalyzed Hvy. Assault Rifle | -8/Materials | Scanalyzed Robot Schematics ------------------ None Fabricated ------------ Nothing Repaired ---------- Field Laser | 18% | -8/Materials Alien Tech Used ----------------- None Achievements -------------- Fist Fight It's Just You Librarian Made in Tau Ceti IV Novice Programmer One Hack Too Far Part-time Mechanic Power Corrupts Risk Taker Challenges ------------ None Game ------ Seed InsulatedGyrokineticWheel Manual? 0 Play Time 00:50:37 Cumulative 1.2 hours Start 2025.06.28 @ 06:19:39 End 2025.06.28 @ 10:35:15 Sessions 3 Manual Loads 0 Difficulty Explorer Special Mode None Game No. 3 Rogue 0 Adventurer 0 Explorer 3 Win Type - Total 0 Types 0/0/0/0/0/0/0/0/0/0 Lore% 1 Gallery% 3 Achievement% 6 Wizard Run 0 Options --------- Layout 1 ASCII 0 Keyboard 0 Movement Arrows Keybinds 0 Fullscreen 1 Font 32/SmallcapsGlow Map View 50x35 Zoom Use 15% Tactical HUD 0 Map Filters NONE Filters NONE Steam 1 RUN: a1f8adf5-9b49-4cdb-a2c8-b398b1a33883